Cogmind - Beta 10.2 @@@ ROGUE MODE // 2022.01.16 @ 02:18:10 Player: Bensnap Result: Destroyed by G-47 Trooper with Particle Gun Performance ------------- Evolutions (3) 1500 Regions Visited (6) 1200 Robots Destroyed (17) 85 Value Destroyed (343) 343 Prototype IDs (2) 40 Alien Tech Used (0) 0 Bonus (0) 0 TOTAL SCORE: 3168 Bonus ------- None Cogmind --------- Core Integrity 0/700 Matter 300/300 Energy 99/100 System Corruption 2% Temperature Cool (21) Movement Core (50) Location -7/Storage Parts ------- > --- POWER (1) -------- (None) > --- PROPULSION (4) --- (None) > --- UTILITY (6) ------ Visual Processing Unit Seismic Analyzer System Shield > --- WEAPON (2) ------- (None) > --- INVENTORY (4) ---- Nuclear Core Nuclear Core Small Storage Unit Mining Laser Peak State ------------ > --- POWER ------------ Heavy Deuterium Engine > --- PROPULSION ------- Flight Unit Improved Flight Unit Improved Flight Unit Improved Flight Unit > --- UTILITY ---------- Small Storage Unit Visual Processing Unit Improved Terrain Scanner Advanced Terrain Scanner Seismic Analyzer > --- WEAPON ----------- Assault Rifle High-powered Shotgun > --- INVENTORY -------- Nuclear Core Nuclear Core Flight Unit Small Storage Unit Seismic Analyzer Mining Laser [Rating: 29] Favorites ----------- Power Light Ion Engine Engine Light Ion Engine Power Core Nuclear Core Propulsion Improved Flight Unit Leg Aluminum Leg Flight Unit Improved Flight Unit Utility Small Storage Unit Device Improved Terrain Scanner Storage Small Storage Unit Processor Seismic Analyzer Hackware System Shield Weapon Medium Laser Energy Gun Medium Laser Ballistic Gun Assault Rifle Build | -11 -10 -9 -9 -8 -7 -7 ------- Run | Scr Mat Mat Min Mat Fac Sto Slots Evolved 6 | . . 2 . 2 2 . Power . | . . . . . . . Propulsion 2 | . . 1 . 1 . . Utility 4 | . . 1 . 1 2 . Weapon . | . . . . . . . Parts Attached 36 | 7 3 9 2 7 4 4 Power 8 | 1 . 1 1 2 2 1 Engine 7 | 1 . 1 1 1 2 1 Core 1 | . . . . 1 . . Reactor . | . . . . . . . Propulsion 10 | 2 2 4 . 1 1 . Treads . | . . . . . . . Leg 3 | 2 . 1 . . . . Wheel . | . . . . . . . Hover . | . . . . . . . Flight 7 | . 2 3 . 1 1 . Utility 9 | 2 . 2 1 1 1 2 Device 5 | 1 . 2 . . 1 1 Storage 1 | 1 . . . . . . Processor 2 | . . . 1 1 . . Hackware 1 | . . . . . . 1 Protection . | . . . . . . . Artifact . | . . . . . . . Weapon 9 | 2 1 2 . 3 . 1 Energy Gun 3 | 2 . . . . . 1 Energy Cannon . | . . . . . . . Ballistic Gun 6 | . 1 2 . 3 . . Ballistic Cannon . | . . . . . . . Launcher . | . . . . . . . Special Weapon . | . . . . . . . Impact Weapon . | . . . . . . . Slashing Weapon . | . . . . . . . Piercing Weapon . | . . . . . . . Special Melee Weapon . | . . . . . . . Unidentified Prototypes 2 | . . 1 . . 1 . Parts Lost 16 | . . 3 . . 6 7 Power 4 | . . 2 . . 1 1 Propulsion 5 | . . . . . 3 2 Utility 5 | . . 1 . . 1 3 Weapon 2 | . . . . . 1 1 Highest Loss Streak 7 | . . 3 . . 6 7 Average Slot Usage (%) 75 | . 93 71 64 73 84 47 Engine 8 | . 14 11 8 5 6 2 Leg 6 | . 20 8 . . . . Flight 19 | . 6 24 33 27 26 9 Device 12 | . 14 16 11 9 13 5 Storage 9 | . 14 11 11 9 7 6 Processor 6 | . . . 1 13 15 15 Energy Gun 5 | . 22 . . . . . Ballistic Gun 3 | . . . . 6 14 . Naked Turns . | . . . . . . . Heaviest Build 16 | 12 12 10 12 15 16 10 Greatest Support 22 | 20 20 18 18 22 22 10 Greatest Overweight (x) 3 | 2 3 1 . . 1 1 Average Overweight (x) . | . . . . . . . Largest Inventory Capacity 6 | 6 6 6 6 6 6 6 Average Capacity 5 | 5 6 6 6 6 6 5 Most Carried 6 | 3 6 6 5 6 6 6 Average Carried 4 | 1 4 5 5 5 5 5 Final Capacity 6 | 6 6 6 6 6 6 4 Final Carried 6 | 3 6 5 5 6 5 4 Class Distribution -------------------- 54% | Mutant 17% | Scout 14% | Scavenger-Scout 10% | Sprinter Dominant Class ---------------- Mutant | -10/Materials Mutant | -9/Materials Sprinter | -9/Mines Scout | -8/Materials Scavenger-Scout | -7/Factory Mutant | -7/Storage Resources | -11 -10 -9 -9 -8 -7 -7 ----------- Run | Scr Mat Mat Min Mat Fac Sto Matter Collected 663 | 270 20 21 98 78 165 11 Remotely 91 | 71 20 . . . . . Salvage Created 491 | 179 51 21 . 75 165 . Parts 35 | 13 4 2 . 9 7 . Haulers Intercepted . | . . . . . . . Recyclers Shooed 1 | 1 . . . . . . Parts Field Recycled . | . . . . . . . Retrieved Matter . | . . . . . . . Parts Self-Destructed . | . . . . . . . Prevented . | . . . . . . . Kills | -11 -10 -9 -9 -8 -7 -7 ------- Run | Scr Mat Mat Min Mat Fac Sto Combat Hostiles Destroyed 10 | . 3 . . 3 4 . Guns 10 | . 3 . . 3 4 . Classes Destroyed 6 | 2 1 1 . . 2 . Tunneler 4 | 4 . . . . . . Recycler 1 | 1 . . . . . . Watcher 2 | . . 1 . 1 . . Swarmer 6 | . 3 . . 3 . . Grunt 3 | . . . . . 3 . Sentry 1 | . . . . . 1 . Best Kill Streak 3 | 3 3 1 . 3 3 . Combat Bots Only 3 | . 3 . . 3 3 . Max Kills in Single Turn 1 | 1 1 1 . 1 1 . Gunslinging . | . . . . . . . Exploded . | . . . . . . . Melee . | . . . . . . . Uniques/NPCs Destroyed . | . . . . . . . Combat | -11 -10 -9 -9 -8 -7 -7 -------- Run | Scr Mat Mat Min Mat Fac Sto Damage Taken 1693 | . 64 233 . 93 518 785 Core 801 | . 16 61 . 23 111 590 Absorbed by Shields . | . . . . . . . Core Remaining (%) 93 | 100 93 . 84 95 . . Volleys Fired 51 | 14 8 4 . 6 19 . Largest 2 | 2 2 1 . 2 2 . Hottest 90 | 90 90 20 . 45 45 . Shots Fired 93 | 28 14 4 . 9 38 . Gun 93 | 28 14 4 . 9 38 . Cannon . | . . . . . . . Launcher . | . . . . . . . Special . | . . . . . . . Kinetic 53 | . 2 4 . 9 38 . Thermal 20 | 14 6 . . . . . Explosive . | . . . . . . . Electromagnetic 20 | 14 6 . . . . . Robot Hit Streak 10 | 6 3 2 . 6 10 . Robot Miss Streak 3 | 3 2 3 . 3 2 . Penetration Max . | . . . . . . . Secondary Targets 2 | . . . . 2 . . Max Gunslinging Chain 1 | . . . . 1 . . Shots Hit Robots 60 | 15 6 2 . 6 31 . Core Hits 31 | 6 3 1 . 5 14 2 Critical Hits 1 | . . 1 . . . . Critical Kills 1 | . . 1 . . . . Critical Parts Destroyed . | . . . . . . . Melee Attacks . | . . . . . . . Impact . | . . . . . . . Slashing . | . . . . . . . Piercing . | . . . . . . . Sneak Attacks . | . . . . . . . Combat Hostiles . | . . . . . . . Follow-up Attacks . | . . . . . . . Damage Inflicted 908 | 208 60 44 . 105 485 6 Guns 895 | 208 60 37 . 105 485 . Cannons . | . . . . . . . Explosions . | . . . . . . . Melee . | . . . . . . . Ramming 13 | . . 7 . . . 6 Kinetic 639 | . 12 37 . 105 485 . Thermal 113 | 100 13 . . . . . Explosive . | . . . . . . . Electromagnetic 143 | 108 35 . . . . . Impact . | . . . . . . . Slashing . | . . . . . . . Piercing . | . . . . . . . Highest Corruption 2 | . . . . . . 2 Average Corruption 1 | . . . . . . 1 Corruption Purged . | . . . . . . . Overload Shots . | . . . . . . . Overflow Damage . | . . . . . . . Projectiles . | . . . . . . . Explosions . | . . . . . . . Melee . | . . . . . . . Knockbacks . | . . . . . . . Impact . | . . . . . . . Kinetic . | . . . . . . . Secondary . | . . . . . . . Self-Inflicted Damage 5 | . . 3 . . . 2 Shots . | . . . . . . . Rammed 4 | . . 1 . . . 3 Targets Rammed 4 | . . 1 . . . 3 Kicked . | . . . . . . . Crushed . | . . . . . . . Highest Temperature 120 | 120 120 . . . 8 7 Average Temperature 43 | 42 51 . . . 8 7 Received Heat Transfer 549 | . 9 78 . . 225 237 Siege Activations . | . . . . . . . Robots Corrupted . | . . . . . . . Combat Hostiles . | . . . . . . . Parts Fried . | . . . . . . . Impact Corruptions . | . . . . . . . Robots Melted . | . . . . . . . Combat Hostiles . | . . . . . . . Parts Melted . | . . . . . . . Heat Transferred 333 | 296 37 . . . . . Parts Sabotaged . | . . . . . . . Parts Stolen . | . . . . . . . Parts Stripped . | . . . . . . . Power Chain Reactions . | . . . . . . . Missiles Intercepted . | . . . . . . . Alert | -11 -10 -9 -9 -8 -7 -7 ------- Run | Scr Mat Mat Min Mat Fac Sto Peak Influence 234 | 25 120 142 96 234 202 232 Initial 106 | . 16 50 51 37 106 87 Average 87 | 10 51 92 75 89 155 147 Maximum Alert Level 1 | . . . . 1 1 1 Low Security (%) 95 | 100 100 100 100 87 98 72 Level 1 4 | . . . . 12 1 27 Level 2 . | . . . . . . . Level 3 . | . . . . . . . Level 4 . | . . . . . . . Level 5 . | . . . . . . . High Security . | . . . . . . . Max Security . | . . . . . . . Squads Dispatched 6 | . . 2 . 1 1 2 Investigation 1 | . . 1 . . . . Extermination . | . . . . . . . Reinforcement 4 | . . 1 . 1 . 2 Assault . | . . . . . . . Garrison 1 | . . . . . 1 . Intercept . | . . . . . . . Construction Impeded . | . . . . . . . Haulers Reinforced . | . . . . . . . Stealth | -11 -10 -9 -9 -8 -7 -7 --------- Run | Scr Mat Mat Min Mat Fac Sto Distress Signals 5 | . 1 2 . . . 2 Communications Jammed 2 | . . . . . . 2 Distress Signals 2 | . . . . . . 2 Times Spotted 74 | . 7 18 9 11 7 22 Peak Tracking Total 18 | . 4 18 5 7 3 13 Tactical Retreats 4 | . . . 1 2 . 1 Traps | -11 -10 -9 -9 -8 -7 -7 ------- Run | Scr Mat Mat Min Mat Fac Sto Traps Triggered 1 | . . 1 . . . . Indirectly . | . . . . . . . Trap Hack Attempts . | . . . . . . . Triggered . | . . . . . . . Disarmed . | . . . . . . . Reprogrammed . | . . . . . . . Reused . | . . . . . . . Traps Extracted . | . . . . . . . Installed . | . . . . . . . Triggered . | . . . . . . . Machines | -11 -10 -9 -9 -8 -7 -7 ---------- Run | Scr Mat Mat Min Mat Fac Sto Machines Disabled 1 | . . . . 1 . . Max in Single Turn 1 | . . . . 1 . . Machines Sabotaged . | . . . . . . . Garrisons Compromised . | . . . . . . . Overloaded Fab Kills . | . . . . . . . Fab Network Shutdowns . | . . . . . . . Hacking | -11 -10 -9 -9 -8 -7 -7 --------- Run | Scr Mat Mat Min Mat Fac Sto Machines Accessed 8 | . 3 2 . . . 3 Terminals 8 | . 3 2 . . . 3 Fabricators . | . . . . . . . Repair Stations . | . . . . . . . Recycling Units . | . . . . . . . Scanalyzers . | . . . . . . . Garrison Access . | . . . . . . . Total Hacks 20 | . 9 4 . . . 7 Successful 5 | . 3 . . . . 2 Failed 15 | . 6 4 . . . 5 Catastrophic 6 | . 3 1 . . . 2 Database Lockouts . | . . . . . . . Manual 15 | . 6 3 . . . 6 Terminals 20 | . 9 4 . . . 7 Fabricators . | . . . . . . . Repair Stations . | . . . . . . . Recycling Units . | . . . . . . . Scanalyzers . | . . . . . . . Garrison Access . | . . . . . . . Terminal Hacks 5 | . 3 . . . . 2 Branch Access Points 1 | . . . . . . 1 Emergency Access Points 1 | . . . . . . 1 Locate Traps 1 | . 1 . . . . . Zone Layout 2 | . 2 . . . . . Fabricator Hacks . | . . . . . . . Repair Station Hacks . | . . . . . . . Recycling Unit Hacks . | . . . . . . . Scanalyzer . | . . . . . . . Garrison Access Hacks . | . . . . . . . Unauthorized Hacks . | . . . . . . . Terminals . | . . . . . . . Fabricators . | . . . . . . . Repair Stations . | . . . . . . . Recycling Units . | . . . . . . . Scanalyzers . | . . . . . . . Garrison Access . | . . . . . . . Data Cores Recovered . | . . . . . . . Used . | . . . . . . . Hacking Detections 7 | . 3 2 . . . 2 Full Trace Events . | . . . . . . . Feedback Events . | . . . . . . . Feedback Blocked . | . . . . . . . Robot Schematics Acquired . | . . . . . . . Robots Built . | . . . . . . . Matter . | . . . . . . . Time . | . . . . . . . Total Robot Build Rating . | . . . . . . . Part Schematics Acquired . | . . . . . . . Parts Built . | . . . . . . . Matter . | . . . . . . . Time . | . . . . . . . Total Part Build Rating . | . . . . . . . Parts Repaired . | . . . . . . . Time . | . . . . . . . Parts Recycled . | . . . . . . . Recycled Matter . | . . . . . . . Retrieved Matter . | . . . . . . . Retrieved Components . | . . . . . . . Parts Scanalyzed . | . . . . . . . Part Schematics Acquired . | . . . . . . . Parts Damaged . | . . . . . . . Bothacking | -11 -10 -9 -9 -8 -7 -7 ------------ Run | Scr Mat Mat Min Mat Fac Sto Used RIF Installer . | . . . . . . . Robots Hacked . | . . . . . . . Non-combat . | . . . . . . . Combat . | . . . . . . . Robot Hacks Applied . | . . . . . . . Relay Couplers Released . | . . . . . . . Robots Rewired . | . . . . . . . Allies Hacked . | . . . . . . . Hacks Repelled . | . . . . . . . Allies | -11 -10 -9 -9 -8 -7 -7 -------- Run | Scr Mat Mat Min Mat Fac Sto Total Allies . | . . . . . . . Largest Group . | . . . . . . . Highest-Rated Group . | . . . . . . . Highest-Rated Ally . | . . . . . . . Total Orders . | . . . . . . . Ally Attacks . | . . . . . . . Total Damage . | . . . . . . . Kills . | . . . . . . . Allies Corrupted . | . . . . . . . Allies Melted . | . . . . . . . Intel | -11 -10 -9 -9 -8 -7 -7 ------- Run | Scr Mat Mat Min Mat Fac Sto Robot Analysis Total . | . . . . . . . Derelict Logs Recovered . | . . . . . . . Drone Launches . | . . . . . . . Drone Recoveries . | . . . . . . . Exploration | -11 -10 -9 -9 -8 -7 -7 ------------- Run | Scr Mat Mat Min Mat Fac Sto Turns Passed 938 | 144 188 154 80 88 173 111 Spaces Moved 1196 | 75 163 215 185 174 155 229 Core 64 | 10 1 . . . . 53 Treads . | . . . . . . . Legs 153 | 65 85 3 . . . . Wheels . | . . . . . . . Hover . | . . . . . . . Flight 979 | . 77 212 185 174 155 176 Fastest Speed 27 | 50 37 29 29 27 27 34 Average Speed 50 | 119 83 59 29 28 30 41 Slowest Speed 200 | 150 200 127 32 29 105 100 Overloaded Moves . | . . . . . . . Propulsion Burnouts . | . . . . . . . Robots Hopped 12 | . 2 1 . 3 3 3 Cave-ins Triggered . | . . . . . . . Exploration Rate (%) 28 | 6 37 23 44 24 8 60 Regions Visited 6 Branch Regions 2 Pre-discovered Areas . | . . . . . . . Known Exits Taken . | . . . . . . . Unknown Exits Taken 6 | 1 1 1 1 1 1 . Scrap Searched . | . . . . . . . Spaces Dug . | . . . . . . . Terrain Destroyed . | . . . . . . . Melee . | . . . . . . . Projectile . | . . . . . . . AOE . | . . . . . . . Terrain Rammed . | . . . . . . . Walls Destroyed . | . . . . . . . Machines Disabled . | . . . . . . . Actions | -11 -10 -9 -9 -8 -7 -7 --------- Run | Scr Mat Mat Min Mat Fac Sto Total 1419 | 98 200 237 208 199 238 239 Wait 118 | . 19 4 22 6 62 5 Move 1167 | 74 159 212 184 167 148 223 Hop 11 | . 1 1 . 3 3 3 Pick Up 10 | 3 3 . . 4 . . Fast Attach 26 | 7 3 3 2 4 3 4 Attach 8 | . . 4 . 3 1 . Detach 9 | . 2 3 . 3 . 1 Swap 2 | . . 2 . . . . Drop 13 | . 5 3 . 3 2 . Fire 51 | 14 8 4 . 6 19 . Melee . | . . . . . . . Ram 4 | . . 1 . . . 3 Kick . | . . . . . . . Crush . | . . . . . . . Escape Stasis . | . . . . . . . Rewire . | . . . . . . . Trap . | . . . . . . . Miscellaneous . | . . . . . . . Route ------- -11/Scrapyard -10/Materials -9/Materials -9/Mines -8/Materials -7/Factory (discovered 2 exits: *Sto / [*Low]) -7/Storage (discovered 2 exits: [*Fac] / Rec) History --------- Turn | Location | Event 22 | -11/Scrapyard | Discovered new exit (range 15) 145 | -11/Scrapyard | Entered Materials 328 | -10/Materials | Discovered new exit (range 7) 330 | -10/Materials | Build established: Mutant 333 | -10/Materials | Entered another Materials area 333 | -9/Materials | Evolved 2 slots: Propulsion x1, Utility x1 482 | -9/Materials | Discovered new exit (range 16) 487 | -9/Materials | Entered Mines 488 | -9/Mines | Assembled infested the area 488 | -9/Mines | Joined a pair of Derelicts in attacking an 0b10 outpost 516 | -9/Mines | Lost 3 parts (2p1u) 565 | -9/Mines | Discovered new exit (range 7) 567 | -9/Mines | Entered Materials 567 | -8/Materials | Evolved 2 slots: Propulsion x1, Utility x1 631 | -8/Materials | Discovered new exit (range 11) 655 | -8/Materials | Entered Factory 655 | -7/Factory | Evolved 2 slots: Utility x2 669 | -7/Factory | Discovered new exit (range 7) 723 | -7/Factory | Discovered new exit (range 7) 801 | -7/Factory | Garrison activated, responded to threat 828 | -7/Factory | Entered Storage 865 | -7/Storage | Lost 7 parts (1p3n1u2w) 877 | -7/Storage | Identified exit to Recycling 912 | -7/Storage | Discovered new exit (range 16) 913 | -7/Storage | Core integrity fell below 50% 925 | -7/Storage | Core integrity fell below 20% 939 | -7/Storage | Destroyed by G-47 Trooper with Particle Gun Last Messages --------------- 00907_ K-01 Serf collects debris. 00911_ K-01 Serf destroyed. 00911_ U-05 Engineer lays Concrete. 00911_ Slammed into K-01 Serf. 00911_ T-07 Excavator is excavating. 00911_ K-01 Serf collects debris. 00912_ U-05 Engineer lays Concrete. 00912_ EXIT=FOUND 00912_ K-01 Serf destroyed. 00913_ Broken Transmission Jammer destroyed. 00913_ Acquired 1 matter. 00915_ T-07 Excavator is excavating. 00921_ Sml. Storage Unit destroyed. 00927_ O-16 Technician: "IFF HANDSHAKE FAILED. SECURING TERMINAL." 00928_ O-16 Technician sends out distress signal. 00928_ O-16 Technician uses terminal to summon reinforcements. 00928_ ALERT: Hostiles spotted, dispatching reinforcements to Terminal S007. 00928_ O-16 Technician locks terminal. 00936_ Slammed into P-60 Hacker. Map ----- +----------------------------------------------------+ | ???????????????????????????????????????????????? | | ???????????????????????????????????????????????? | | ???????????????????????????????????????????????? | | ???????????????????????????????????????????????? | | ???????????????????????????????????????????????? | | ???????????????????????????????????????????? | | #??????????????????????????????????????????? | | #????????????#####?????????????????????????? | | #????????????#"""#?????????????????????????? | | ??????????##?#"Y"#?????????????????????????? | | ???#?????????##T##" "###???????????????????????? | | ?????????????# #???????????????????????? | | ?????????????# #???????????????????????? | | ?????????????# #???????????????????????? | | ?????????????# #???????????????????????? | | ?????????????# #???????????????????????? | | ????????????# """ """ #########???????????????? | | ?????????????# """ """ + #???????????????? | | ?????????????# """ """ # #???????????????? | | ????????????######+##### g"" ###?????????????? | | ????????????# ^"" #?????????????? | | ????????????# Y" #??""""???????? | | ????????????# % "" #?? ????????? | | ????????????######+##+## ^ "" ###/###???????? | | ?????????????# # YgY [!# #???????? | | ?????????????# """" # @g g #???????? | | ?????????????# """" # g #???????? | | ????????????# """" # Y Y #???????? | | ????????????# """" ###########Yk #???????? | | ????????????# #?########## ##???????? | | ???????????# #?# #= #????????? | | ??????????# #?# #%! #????????? | | T???????????## ########?# #= # #??????? | | ???????????##?????????# + #??????? | | ????????????????????????# = # # #??????? | | #???????????????????????# %!# ###??????? | | #???????????????????????# * # #????????? | | #???????????????????????# # #????????? | | ##?#????????????????????# # #????????? | | #???????????????????????###/###### #????????? | | "#??#??????????????????????# # [[# +????????? | | %##################+######## # [# #????????? | | " / # #????????? | | #?????# #+####### "" # +????????? | | #?????# # ## "" # #????????? | | ######+#####??# # ! ## "T # #????????? | | ??# #### # =## "" # #????????? | | ??# """ + +% ## "" # < #????????? | | ??# """ #### # ## # ?????????? | | ??# """ #??# ###### ##### ####?????????? | +----------------------------------------------------+ Best States ------------- Heat Dissipation 34 Energy Generation 14 Energy Capacity 265 Matter Stores 300 Matter Capacity 300 Sight Range 18 Robot Scan Range 10 Terrain Scan Range 16 Terrain Scan Density 60 Jamming Range 8 Evasion (%) 64 Defensive Hacking 10 Item Schematics ----------------- None Robot Schematics ------------------ None Fabricated ------------ Nothing Alien Tech Used ----------------- None Achievements -------------- None Challenges ------------ None Game ------ Seed LongswordTargetSuperbattery Manual? 0 Play Time 00:22:57 Cumulative 26.3 hours Start 2022.01.16 @ 01:55:53 End 2022.01.16 @ 02:18:10 Sessions 1 Manual Loads 0 Difficulty Rogue Special Mode None Game No. 44 Rogue 44 Adventurer 0 Explorer 0 Win Type - Total 0 Types 0/0/0/0/0/0/0/0/0 Lore% 28 Gallery% 31 Achievement% 30 Wizard Run 0 Options --------- ASCII 0 Keyboard 1 Movement Numpad Keybinds 0 Fullscreen 1 Font 18/SmallcapsGlow Map View 76x50 Tactical HUD 1 Map Filters NONE Filters NONE Steam 1 RUN: 72150368-46aa-4bd5-8d3c-a63fb036e7db